fUSD/lending_fUSD_20250221
["ID","MTS","AMOUNT","RATE_DAILY","PERIOD"]
[353952411,1740165075127,-847.07,0.00011368,2]
[353952412,1740165075136,-939.95,0.00011368,2]
[353952413,1740165075145,-1190.44,0.00011368,2]
[353952414,1740165075155,-644.26,0.00011368,2]
[353952415,1740165075164,-852.88,0.00011368,2]
[353952416,1740165075173,-1471.32,0.00011368,2]
[353952417,1740165075183,-678.67,0.00011368,2]
[353952418,1740165075192,-2030.12,0.00011368,2]
[353952419,1740165075202,-626.47,0.00011368,2]
[353952420,1740165075211,-1690.47,0.00011368,2]
[353952421,1740165075220,-865.6,0.00011368,2]
[353952422,1740165075230,-826.13,0.00011368,2]
[353952423,1740165075239,-500.0,0.00011368,2]
[353952424,1740165075249,-683.0,0.00011368,2]
[353952425,1740165075260,-2042.4,0.00011368,2]
[353952426,1740165075270,-1525.59,0.00011368,2]
[353952427,1740165075279,-2138.39,0.00011368,2]
[353952428,1740165075288,-982.38,0.00011368,2]
[353952429,1740165075298,-2241.41,0.00011368,2]
[353952430,1740165075307,-730.28,0.00011368,2]
[353952431,1740165075317,-1227.29,0.00011368,2]
[353952432,1740165075327,-500.0,0.00011368,2]
[353952433,1740165075336,-342.88,0.00011368,2]
[353952434,1740165075346,-500.0,0.00011368,2]
[353952435,1740165075357,-500.0,0.00011368,2]
[353952436,1740165075368,-500.0,0.00011368,2]
[353952437,1740165075378,-901.21,0.00011368,2]
[353952438,1740165075387,-1222.37,0.00011368,2]
[353952439,1740165075396,-151.0,0.00011368,2]
[353952440,1740165075406,-731.51,0.00011369,2]
[353952441,1740165075415,-500.0,0.00011369,2]
[353952442,1740165075424,-192.28455133,0.00011369,2]
[353952443,1740165075434,-500.0,0.00011369,2]
[353952444,1740165075443,-500.0,0.00011369,2]
[353952445,1740165075454,-500.0,0.00011369,2]
[353952446,1740165075463,-573.35,0.00011369,2]
[353952447,1740165075473,-500.0,0.00011369,2]
[353952448,1740165075482,-500.0,0.00011369,2]
[353952449,1740165075492,-500.0,0.00011369,2]
[353952450,1740165075501,-500.0,0.00011369,2]
[353952451,1740165075511,-500.0,0.00011369,2]
[353952452,1740165075521,-500.0,0.00011369,2]
[353952453,1740165075531,-500.0,0.00011369,2]
[353952454,1740165075540,-500.0,0.00011369,2]
[353952455,1740165075550,-500.0,0.00011369,2]
[353952456,1740165075559,-500.0,0.00011369,2]
[353952457,1740165075568,-797.23,0.00011369,2]
[353952458,1740165075578,-677.02,0.00011369,2]
[353952459,1740165075587,-818.62,0.00011369,2]
[353952460,1740165075596,-840.96,0.00011369,2]
[353952461,1740165075606,-500.0,0.00011369,2]
[353952462,1740165075616,-500.0,0.00011369,2]
[353952463,1740165075626,-500.0,0.00011369,2]
[353952464,1740165075635,-500.0,0.00011369,2]
[353952465,1740165075645,-500.0,0.00011369,2]
[353952466,1740165075655,-575.33,0.00011369,2]
[353952467,1740165075664,-500.0,0.00011369,2]
[353952468,1740165075673,-7203.316952,0.00011369,2]
[353952469,1740165075682,-500.0,0.00011369,2]
[353952470,1740165075691,-500.0,0.00011369,2]
[353952471,1740165075701,-500.0,0.00011369,2]
[353952472,1740165075710,-500.0,0.00011369,2]
[353952473,1740165075720,-500.0,0.00011369,2]
[353952474,1740165075729,-1742.76,0.00011369,2]
[353952475,1740165075739,-500.0,0.00011369,2]
[353952476,1740165075748,-500.0,0.00011369,2]
[353952477,1740165075757,-500.0,0.00011369,2]
[353952478,1740165075767,-500.0,0.00011369,2]
[353952479,1740165075776,-565.11,0.00011369,2]
[353952480,1740165075786,-1160.38,0.00011369,2]
[353952481,1740165075795,-680.99,0.00011369,2]
[353952482,1740165075804,-500.0,0.00011369,2]
[353952483,1740165075814,-626.89,0.00011369,2]
[353952484,1740165075823,-500.0,0.00011369,2]
[353952485,1740165075833,-1029.96,0.00011369,2]
[353952486,1740165075843,-500.0,0.00011369,2]
[353952487,1740165075852,-858.03,0.00011369,2]
[353952488,1740165075862,-502.89,0.00011369,2]
[353952489,1740165075872,-589.86,0.00011369,2]
[353952490,1740165075881,-500.0,0.00011369,2]
[353952491,1740165075891,-500.0,0.00011369,2]
[353952492,1740165075900,-500.0,0.00011369,2]
[353952493,1740165075909,-500.0,0.00011369,2]
[353952494,1740165075919,-1194.6,0.00011369,2]
[353952495,1740165075929,-500.0,0.00011369,2]
[353952496,1740165075943,-1339.27,0.00011369,2]
[353952497,1740165075952,-697.33,0.00011369,2]
[353952498,1740165075962,-502.71342134,0.00011369,2]
[353952499,1740165075971,-589.93,0.00011369,2]
[353952500,1740165075981,-500.0,0.00011369,2]
[353952501,1740165075991,-500.0,0.00011369,2]
[353952502,1740165076001,-500.0,0.00011369,2]
[353952503,1740165076010,-500.0,0.00011369,2]
[353952504,1740165076020,-500.0,0.00011369,2]
[353952505,1740165076029,-500.0,0.00011369,2]
[353952506,1740165076037,-1218.86,0.00011369,2]
[353952507,1740165076047,-500.0,0.00011369,2]
[353952508,1740165076057,-872.66,0.00011369,2]
[353952509,1740165076066,-393.56929519,0.00011369,2]
[353952510,1740165076076,-847.49,0.00011369,2]
[353952511,1740165076085,-500.0,0.00011369,2]
[353952512,1740165076094,-500.0,0.00011369,2]
[353952513,1740165076104,-1152.78,0.00011369,2]
[353952514,1740165076115,-500.0,0.00011369,2]
[353952515,1740165076123,-784.84,0.00011369,2]
[353952516,1740165076133,-651.21,0.00011369,2]
[353952517,1740165076142,-811.75,0.00011369,2]
[353952518,1740165076152,-495.01040801,0.00011369,2]
[353952519,1740165076161,-500.0,0.00011369,2]
[353952520,1740165076171,-1602.77,0.00011369,2]
[353952521,1740165076180,-928.49,0.00011369,2]
[353952522,1740165076190,-500.0,0.00011369,2]
[353952523,1740165076199,-1453.54,0.00011369,2]
[353952524,1740165076209,-500.0,0.00011369,2]
[353952525,1740165076218,-568.1622492,0.00011369,2]
[353952526,1740165076227,-1052.55,0.00011369,2]
[353952527,1740165076391,-654.12,0.00011369,2]
[353952528,1740165076401,-500.0,0.00011369,2]
[353952529,1740165076412,-600.59,0.00011369,2]
[353952530,1740165076421,-500.0,0.00011369,2]
[353952531,1740165076431,-520.9,0.00011369,2]
[353952532,1740165076441,-379.38191692,0.00011369,2]
[353952533,1740165076450,-1557.94,0.00011369,2]
[353952534,1740165076460,-600.19,0.00011369,2]
[353952535,1740165076469,-723.16,0.00011369,2]
[353952536,1740165076478,-500.0,0.00011369,2]
[353952537,1740165076488,-973.86,0.00011369,2]
[353952538,1740165076498,-627.0,0.00011369,2]
[353952539,1740165076507,-597.11,0.00011369,2]
[353952540,1740165076516,-1361.06,0.00011369,2]
[353952541,1740165076526,-500.0,0.00011369,2]
[353952542,1740165076535,-545.63,0.00011369,2]
[353952543,1740165076545,-684.05,0.00011369,2]
[353952544,1740165076555,-508.67,0.00011369,2]
[353952545,1740165076564,-865.33,0.00011369,2]
[353952546,1740165076574,-565.87,0.00011369,2]
[353952547,1740165076583,-612.75,0.00011369,2]
[353952548,1740165076593,-523.64,0.00011369,2]
[353952549,1740165076603,-645.56,0.00011369,2]
[353952550,1740165076614,-961.54,0.00011369,2]
[353952551,1740165076625,-842.47,0.00011369,2]
[353952552,1740165076634,-500.0,0.00011369,2]
[353952553,1740165076644,-500.0,0.00011369,2]
[353952554,1740165076653,-500.0,0.00011369,2]
[353952555,1740165076663,-895.28,0.00011369,2]
[353952556,1740165076672,-500.0,0.00011369,2]
[353952557,1740165076681,-793.32,0.00011369,2]
[353952558,1740165076692,-500.0,0.00011369,2]
[353952559,1740165076701,-514.87,0.00011369,2]
[353952560,1740165076711,-691.0,0.00011369,2]
[353952561,1740165076720,-500.0,0.00011369,2]
[353952562,1740165076730,-1112.36,0.00011369,2]
[353952563,1740165076739,-500.0,0.00011369,2]
[353952564,1740165076747,-840.51,0.00011369,2]
[353952565,1740165076756,-500.0,0.00011369,2]
[353952566,1740165076765,-500.0,0.00011369,2]
[353952567,1740165076775,-1180.13,0.00011369,2]
[353952568,1740165076785,-844.88,0.00011369,2]
[353952569,1740165076795,-806.72,0.00011369,2]
[353952570,1740165076804,-500.0,0.00011369,2]
[353952571,1740165076813,-537.23,0.00011369,2]
[353952572,1740165076823,-892.59,0.00011369,2]
[353952573,1740165076832,-500.0,0.00011369,2]
[353952574,1740165076841,-806.21,0.00011369,2]
[353952575,1740165076851,-572.73,0.00011369,2]
[353952576,1740165076860,-500.0,0.00011369,2]
[353952577,1740165076872,-1563.66,0.00011369,2]
[353952578,1740165076881,-821.26,0.00011369,2]
[353952579,1740165076890,-500.0,0.00011369,2]
[353952580,1740165076900,-500.0,0.00011369,2]
[353952581,1740165076909,-500.0,0.00011369,2]
[353952582,1740165076919,-940.42,0.00011369,2]
[353952583,1740165076932,-611.12,0.00011369,2]
[353952584,1740165076941,-500.0,0.00011369,2]
[353952585,1740165076951,-500.0,0.00011369,2]
[353952586,1740165076960,-500.0,0.00011369,2]
[353952587,1740165076970,-1780.54,0.00011369,2]
[353952588,1740165076980,-500.0,0.00011369,2]
[353952589,1740165076989,-500.0,0.00011369,2]
[353952590,1740165076999,-991.67,0.00011369,2]
[353952591,1740165077008,-500.0,0.00011369,2]
[353952592,1740165077018,-500.0,0.00011369,2]
[353952593,1740165077028,-500.0,0.00011369,2]
[353952594,1740165077037,-528.9,0.00011369,2]
[353952595,1740165077047,-1402.78,0.00011369,2]
[353952596,1740165077056,-1033.27,0.00011369,2]
[353952597,1740165077066,-500.0,0.00011369,2]
[353952598,1740165077075,-500.0,0.00011369,2]
[353952599,1740165077085,-500.0,0.00011369,2]
[353952600,1740165077094,-600.36,0.00011369,2]
[353952601,1740165077103,-500.0,0.00011369,2]
[353952602,1740165077118,-500.0,0.00011369,2]
[353952603,1740165077127,-882.31,0.00011369,2]
[353952604,1740165077137,-500.0,0.00011369,2]
[353952605,1740165077146,-970.65,0.00011369,2]
[353952606,1740165077156,-500.0,0.00011369,2]
[353952607,1740165077168,-500.0,0.00011369,2]
[353952608,1740165077178,-500.0,0.00011369,2]
[353952609,1740165077187,-500.0,0.00011369,2]
[353952610,1740165077197,-550.33,0.00011369,2]
[353952611,1740165077206,-624.71,0.00011369,2]
[353952612,1740165077215,-500.0,0.00011369,2]
[353952613,1740165077224,-500.0,0.00011369,2]
[353952614,1740165077233,-500.0,0.00011369,2]
[353952615,1740165077242,-500.0,0.00011369,2]
[353952616,1740165077251,-1496.36,0.00011369,2]
[353952617,1740165077261,-500.0,0.00011369,2]
[353952618,1740165077270,-500.0,0.00011369,2]
[353952619,1740165077278,-587.41616138,0.00011369,2]
[353952620,1740165077288,-552.04,0.00011369,2]
[353952621,1740165077297,-500.0,0.00011369,2]
[353952622,1740165077307,-795.52,0.00011369,2]
[353952623,1740165077316,-500.0,0.00011369,2]
[353952624,1740165077325,-500.0,0.00011369,2]
[353952625,1740165077335,-529.57,0.00011369,2]
[353952626,1740165077344,-500.0,0.00011369,2]
[353952627,1740165077353,-512.15,0.00011369,2]
[353952628,1740165077365,-500.0,0.00011369,2]
[353952629,1740165077374,-500.0,0.00011369,2]
[353952630,1740165077383,-500.0,0.00011369,2]
[353952631,1740165077393,-1185.38,0.00011369,2]
[353952632,1740165077402,-500.0,0.00011369,2]
[353952633,1740165077412,-672.16,0.00011369,2]
[353952634,1740165077421,-535.75,0.00011369,2]
[353952635,1740165077431,-500.0,0.00011369,2]
[353952636,1740165077440,-909.05,0.00011369,2]
[353952637,1740165077450,-500.0,0.00011369,2]
[353952638,1740165077459,-500.0,0.00011369,2]
[353952639,1740165077468,-500.0,0.00011369,2]
[353952640,1740165077477,-1301.85,0.00011369,2]
[353952641,1740165077486,-500.0,0.00011369,2]
[353952642,1740165077495,-337.15969562,0.00011369,2]
[353952643,1740165077505,-762.98,0.00011369,2]
[353952644,1740165077514,-500.0,0.00011369,2]
[353952645,1740165077523,-405.39504997,0.00011369,2]
[353952646,1740165077533,-1086.19,0.00011369,2]
[353952647,1740165077543,-628.04,0.00011369,2]
[353952648,1740165077552,-500.0,0.00011369,2]
[353952649,1740165077562,-500.0,0.00011369,2]
[353952650,1740165077571,-577.05852925,0.00011369,2]
[353952651,1740165077581,-1272.05,0.00011369,2]
[353952652,1740165077590,-2241.53,0.00011369,2]
[353952653,1740165077600,-500.0,0.00011369,2]
[353952654,1740165077610,-500.0,0.00011369,2]
[353952655,1740165077623,-499.85410215,0.00011369,2]
[353952656,1740165077633,-670.58,0.00011369,2]
[353952657,1740165077642,-500.0,0.00011369,2]
[353952658,1740165077651,-500.0,0.00011369,2]
[353952659,1740165077660,-538.26305453,0.00011369,2]
[353952660,1740165077670,-500.0,0.00011369,2]
[353952661,1740165077679,-500.0,0.00011369,2]
[353952662,1740165077688,-500.0,0.00011369,2]
[353952663,1740165077698,-500.0,0.00011369,2]
[353952664,1740165077707,-403.22792776,0.00011369,2]
[353952665,1740165077716,-968.09,0.00011369,2]
[353952666,1740165077726,-501.94,0.00011369,2]
[353952667,1740165077735,-1124.07,0.00011369,2]
[353952668,1740165077745,-500.0,0.00011369,2]
[353952669,1740165077754,-1924.61,0.00011369,2]
[353952670,1740165077763,-503.84,0.00011369,2]
[353952671,1740165077772,-500.0,0.00011369,2]
[353952672,1740165077781,-807.41,0.00011369,2]
[353952673,1740165077790,-500.0,0.00011369,2]
[353952674,1740165077800,-500.0,0.00011369,2]
[353952675,1740165077809,-709.07,0.00011369,2]
[353952676,1740165077819,-1488.79,0.00011369,2]
[353952677,1740165077829,-500.0,0.00011369,2]
[353952678,1740165077839,-571.07,0.00011369,2]
[353952679,1740165077848,-500.0,0.00011369,2]
[353952680,1740165077859,-451.83108646,0.00011369,2]
[353952681,1740165077870,-500.0,0.00011369,2]
[353952682,1740165077879,-500.0,0.00011369,2]
[353952683,1740165077888,-805.91,0.00011369,2]
[353952684,1740165077897,-500.0,0.00011369,2]
[353952685,1740165077906,-500.0,0.00011369,2]
[353952686,1740165077915,-1851.17,0.00011369,2]
[353952687,1740165077925,-500.0,0.00011369,2]
[353952688,1740165077935,-761.43,0.00011369,2]
[353952689,1740165077944,-1326.72,0.00011369,2]
[353952690,1740165077954,-500.0,0.00011369,2]
[353952691,1740165077963,-978.38,0.00011369,2]
[353952692,1740165077972,-906.21,0.00011369,2]
[353952693,1740165077982,-1904.8,0.00011369,2]
[353952694,1740165077990,-880.27,0.00011369,2]
[353952695,1740165077999,-571.47,0.00011369,2]
[353952696,1740165078009,-1097.77,0.00011369,2]
[353952697,1740165078020,-859.08,0.00011369,2]
[353952698,1740165078029,-934.53,0.00011369,2]
[353952699,1740165078039,-1546.56,0.00011369,2]
[353952700,1740165078048,-583.31,0.00011369,2]
[353952701,1740165078057,-500.0,0.00011369,2]
[353952702,1740165078067,-500.0,0.00011369,2]
[353952703,1740165078076,-1130.91,0.00011369,2]
[353952704,1740165078085,-500.0,0.00011369,2]
[353952705,1740165078095,-500.0,0.00011369,2]
[353952706,1740165078104,-610.41,0.00011369,2]
[353952707,1740165078113,-500.0,0.00011369,2]
[353952708,1740165078123,-585.41,0.00011369,2]
[353952709,1740165078132,-851.02,0.00011369,2]
[353952710,1740165078141,-500.0,0.00011369,2]
[353952711,1740165078151,-500.0,0.00011369,2]
[353952712,1740165078160,-568.02,0.00011369,2]
[353952713,1740165078170,-887.3,0.00011369,2]
[353952714,1740165078181,-500.0,0.00011369,2]
[353952715,1740165078191,-4138.33,0.00011369,2]
[353952716,1740165078201,-500.0,0.00011369,2]
[353952717,1740165078210,-1028.99,0.00011369,2]
[353952718,1740165078219,-500.0,0.00011369,2]
[353952719,1740165078229,-500.0,0.00011369,2]
[353952720,1740165078238,-500.0,0.00011369,2]
[353952721,1740165078247,-500.0,0.00011369,2]
[353952722,1740165078258,-2434.92,0.00011369,2]
[353952723,1740165078268,-274.11715402,0.00011369,2]
[353952724,1740165078278,-1865.97,0.00011369,2]
[353952725,1740165078288,-864.63,0.00011369,2]
[353952726,1740165078299,-500.0,0.00011369,2]
[353952727,1740165078310,-2807.32,0.00011369,2]
[353952728,1740165078320,-373.16749143,0.00011369,2]
[353952729,1740165078330,-2485.93,0.00011369,2]
[353952730,1740165078341,-200.61530178,0.00011369,2]
[353952731,1740165078352,-1948.35,0.00011369,2]
[353952732,1740165078368,-1949.15,0.00011369,2]
[353952733,1740165078379,-1250.92,0.00011369,2]
[353952734,1740165078389,-1368.66,0.00011369,2]
[353952735,1740165078400,-520.29,0.00011369,2]
[353952736,1740165078411,-500.0,0.00011369,2]
[353952737,1740165078420,-1591.76,0.00011369,2]
[353952738,1740165078433,-500.0,0.00011369,2]
[353952739,1740165078443,-524.60678078,0.00011369,2]
[353952740,1740165078453,-3268.34,0.00011369,2]
[353952741,1740165078463,-854.07,0.00011369,2]
[353952742,1740165078473,-500.0,0.00011369,2]
[353952743,1740165078483,-844.22,0.00011369,2]
[353952744,1740165078492,-1747.18,0.00011369,2]
[353952745,1740165078503,-2153.78,0.00011369,2]
[353952746,1740165078512,-1927.68,0.00011369,2]
[353952747,1740165078523,-500.0,0.00011369,2]
[353952748,1740165078532,-500.0,0.00011369,2]
[353952749,1740165078542,-2392.73,0.00011369,2]
[353952750,1740165078551,-2224.89,0.00011369,2]
[353952751,1740165078561,-500.0,0.00011369,2]
[353952752,1740165078570,-648.85,0.00011369,2]
[353952753,1740165078580,-1746.45,0.00011369,2]
[353952754,1740165078590,-579.73,0.00011369,2]
[353952755,1740165078599,-2556.04,0.00011369,2]
[353952756,1740165078609,-500.0,0.00011369,2]
[353952757,1740165078620,-1670.15,0.00011369,2]
[353952758,1740165078630,-2603.67,0.00011369,2]
[353952759,1740165078639,-500.0,0.00011369,2]
[353952760,1740165078648,-500.0,0.00011369,2]
[353952761,1740165078659,-1657.83,0.00011369,2]
[353952762,1740165078669,-3612.24,0.00011369,2]
[353952763,1740165078678,-500.0,0.00011369,2]
[353952764,1740165078687,-1844.51,0.00011369,2]
[353952765,1740165078696,-500.0,0.00011369,2]
[353952766,1740165078706,-1834.55,0.00011369,2]
[353952767,1740165078715,-2535.0,0.00011369,2]
[353952768,1740165078724,-500.0,0.00011369,2]
[353952769,1740165078734,-518.53,0.00011369,2]
[353952770,1740165078744,-500.0,0.00011369,2]
[353952771,1740165078753,-597.04,0.00011369,2]
[353952772,1740165078763,-549.49,0.00011369,2]
[353952773,1740165078773,-2357.0,0.00011369,2]
[353952774,1740165078783,-845.32,0.00011369,2]
[353952775,1740165078793,-501.07216961,0.00011369,2]
[353952776,1740165078803,-2963.81,0.00011369,2]
[353952777,1740165078814,-247.35917556,0.00011369,2]
[353952778,1740165078824,-510.94,0.00011369,2]
[353952779,1740165078833,-2566.53,0.00011369,2]
[353952780,1740165078843,-1026.17,0.00011369,2]
[353952781,1740165078853,-1074.2,0.00011369,2]
[353952782,1740165078863,-550.84,0.00011369,2]
[353952783,1740165078876,-500.0,0.00011369,2]
[353952784,1740165079030,-515.71,0.00011369,2]
[353952785,1740165079040,-5103.01,0.00011369,2]
[353952786,1740165079050,-1908.26,0.00011369,2]
[353952787,1740165079059,-758.92,0.00011369,2]
[353952788,1740165079069,-500.0,0.00011369,2]
[353952789,1740165079079,-1293.25,0.00011369,2]
[353952790,1740165079088,-939.76,0.00011369,2]
[353952791,1740165079098,-500.0,0.00011369,2]
[353952792,1740165079107,-500.0,0.00011369,2]
[353952793,1740165079118,-2356.45,0.00011369,2]
[353952794,1740165079128,-966.62,0.00011369,2]
[353952795,1740165079137,-974.14,0.00011369,2]
[353952796,1740165079147,-500.0,0.00011369,2]
[353952797,1740165079156,-500.0,0.00011369,2]
[353952798,1740165079166,-1909.2,0.00011369,2]
[353952799,1740165079176,-500.0,0.00011369,2]
[353952800,1740165079186,-818.25,0.00011369,2]
[353952801,1740165079196,-520.34,0.00011369,2]
[353952802,1740165079206,-568.51,0.00011369,2]
[353952803,1740165079215,-685.93,0.00011369,2]
[353952804,1740165079225,-2768.26,0.00011369,2]
[353952805,1740165079235,-500.0,0.00011369,2]
[353952806,1740165079245,-227.7,0.00011369,2]
[353952807,1740165079254,-1604.23,0.00011369,2]
[353952808,1740165079264,-2184.09,0.00011369,2]
[353952809,1740165079274,-500.0,0.00011369,2]
[353952810,1740165079284,-500.0,0.00011369,2]
[353952811,1740165079294,-313.33376682,0.00011369,2]
[353952812,1740165079303,-500.0,0.00011369,2]
[353952813,1740165079313,-1998.1,0.00011369,2]
[353952814,1740165079322,-500.0,0.00011369,2]
[353952815,1740165079332,-646.23,0.00011369,2]
[353952816,1740165079342,-1012.21,0.00011369,2]
[353952817,1740165079351,-554.65,0.00011369,2]
[353952818,1740165079362,-2916.09,0.00011369,2]
[353952819,1740165079373,-500.0,0.00011369,2]
[353952820,1740165079384,-500.0,0.00011369,2]
[353952821,1740165079394,-862.38,0.00011369,2]
[353952822,1740165079403,-500.0,0.00011369,2]
[353952823,1740165079412,-500.0,0.00011369,2]
[353952824,1740165079421,-500.0,0.00011369,2]
[353952825,1740165079431,-829.35,0.00011369,2]
[353952826,1740165079440,-565.07,0.00011369,2]
[353952827,1740165079450,-500.0,0.00011369,2]
[353952828,1740165079459,-599.53,0.00011369,2]
[353952829,1740165079469,-500.0,0.00011369,2]
[353952830,1740165079479,-442.36,0.00011369,2]
[353952831,1740165079489,-1959.3,0.00011369,2]
[353952832,1740165079499,-1594.81,0.00011369,2]
[353952833,1740165079509,-500.0,0.00011369,2]
[353952834,1740165079519,-1779.68,0.00011369,2]
[353952835,1740165079529,-957.13,0.00011369,2]
[353952836,1740165079539,-1091.45,0.00011369,2]
[353952837,1740165079549,-1026.09,0.00011369,2]
[353952838,1740165079559,-1402.52,0.00011369,2]
[353952839,1740165079568,-829.08,0.00011369,2]
[353952840,1740165079578,-875.76,0.00011369,2]
[353952841,1740165079587,-500.0,0.00011369,2]
[353952842,1740165079596,-829.3,0.00011369,2]
[353952843,1740165079606,-1629.13,0.00011369,2]
[353952844,1740165079615,-1178.28,0.00011369,2]
[353952845,1740165079625,-781.38,0.00011369,2]
[353952846,1740165079635,-500.0,0.00011369,2]
[353952847,1740165079647,-3393.01,0.00011369,2]
[353952848,1740165079657,-500.0,0.00011369,2]
[353952849,1740165079670,-153.87,0.00011369,2]
[353952850,1740165079680,-5355.55,0.00011369,2]
[353952851,1740165079690,-500.0,0.00011369,2]
[353952852,1740165079700,-1183.94,0.00011369,2]
[353952853,1740165079710,-579.29,0.00011369,2]
[353952854,1740165079719,-736.92,0.00011369,2]
[353952855,1740165079729,-2607.94,0.00011369,2]
[353952856,1740165079738,-709.36,0.00011369,2]
[353952857,1740165079748,-500.0,0.00011369,2]
[353952858,1740165079758,-500.0,0.00011369,2]
[353952859,1740165079768,-1636.76,0.00011369,2]
[353952860,1740165079778,-777.51,0.00011369,2]
[353952861,1740165079788,-2680.1,0.00011369,2]
[353952862,1740165079797,-500.0,0.00011369,2]
[353952863,1740165079807,-1426.91,0.00011369,2]
[353952864,1740165079817,-926.57,0.00011369,2]
[353952865,1740165079827,-631.94,0.00011369,2]
[353952866,1740165079837,-1759.53,0.00011369,2]
[353952867,1740165079846,-500.0,0.00011369,2]
[353952868,1740165079856,-207.25,0.00011369,2]
[353952869,1740165079866,-500.0,0.00011369,2]
[353952870,1740165079877,-3088.04,0.00011369,2]
[353952871,1740165079887,-413.76399847,0.00011369,2]
[353952872,1740165079896,-500.0,0.00011369,2]
[353952873,1740165079906,-649.52912586,0.00011369,2]
[353952874,1740165079916,-2102.27,0.00011369,2]
[353952875,1740165079926,-2473.99,0.00011369,2]
[353952876,1740165079939,-6791.49,0.00011369,2]
[353952877,1740165079949,-3023.06,0.00011369,2]
[353952878,1740165079958,-854.81,0.00011369,2]
[353952879,1740165079968,-2846.46,0.00011369,2]
[353952880,1740165079978,-1961.8,0.00011369,2]
[353952881,1740165079988,-1835.58,0.00011369,2]
[353952882,1740165079998,-1161.49,0.00011369,2]
[353952883,1740165080008,-996.96,0.00011369,2]
[353952884,1740165080021,-726.25,0.00011369,2]
[353952885,1740165080034,-741.19,0.00011369,2]
[353952886,1740165080045,-1065.12,0.00011369,2]
[353952887,1740165080054,-500.0,0.00011369,2]
[353952888,1740165080064,-3844.61,0.00011369,2]
[353952889,1740165080074,-500.0,0.00011369,2]
[353952890,1740165080084,-1447.68,0.00011369,2]
[353952891,1740165080094,-500.0,0.00011369,2]
[353952892,1740165080104,-1663.66,0.00011369,2]
[353952893,1740165080113,-2061.17,0.00011369,2]
[353952894,1740165080128,-898.1,0.00011369,2]
[353952895,1740165080138,-1470.97,0.00011369,2]
[353952896,1740165080149,-500.0,0.00011369,2]
[353952897,1740165080160,-1165.22,0.00011369,2]
[353952898,1740165080170,-3837.3,0.00011369,2]
[353952899,1740165080181,-787.61,0.00011369,2]
[353952900,1740165080190,-1035.45,0.00011369,2]
[353952901,1740165080201,-5838.06973,0.00011369,2]
[353952902,1740165080211,-2088.16,0.00011369,2]
[353952903,1740165080221,-995.71,0.00011369,2]
[353952904,1740165080230,-1813.73,0.00011369,2]
[353952905,1740165080241,-5277.6,0.00011369,2]
[353952906,1740165080252,-3353.09,0.00011369,2]
[353952907,1740165080261,-2359.06,0.00011369,2]
[353952908,1740165080271,-1820.83,0.00011369,2]
[353952909,1740165080281,-1070.09,0.00011369,2]
[353952910,1740165080290,-500.0,0.00011369,2]